lending/lending_fUSD_20241120
["ID","MTS","AMOUNT","RATE_DAILY","PERIOD"]
[342726452,1732086722674,-500.0,0.0005726,120]
[342726453,1732086722684,-500.0,0.0005726,120]
[342726454,1732086722694,-2844.38,0.0005726,120]
[342726455,1732086722703,-500.0,0.0005726,120]
[342726456,1732086722713,-500.0,0.0005726,120]
[342726457,1732086722722,-500.0,0.0005726,120]
[342726458,1732086722732,-1035.53,0.0005726,120]
[342726459,1732086722742,-1318.23,0.0005726,120]
[342726460,1732086722752,-500.0,0.0005726,120]
[342726461,1732086722762,-500.0,0.0005726,120]
[342726462,1732086722773,-400.36,0.0005726,7]
[342726463,1732086722783,-503.21,0.0005726,120]
[342726464,1732086722793,-500.0,0.0005726,120]
[342726465,1732086722804,-498.7094759,0.0005726,120]
[342726466,1732086722815,-150.0,0.0005726,120]
[342726467,1732086722824,-494.28034331,0.0005726,120]
[342726468,1732086722834,-500.0,0.0005726,120]
[342726469,1732086722844,-500.0,0.0005726,120]
[342726470,1732086722855,-500.0,0.0005726,120]
[342726471,1732086722866,-500.0,0.0005726,120]
[342726472,1732086722875,-2000.0,0.0005726,120]
[342726473,1732086722885,-2333.06,0.0005726,120]
[342726474,1732086722895,-500.0,0.0005726,120]
[342726475,1732086722905,-500.0,0.0005726,120]
[342726476,1732086722915,-500.0,0.0005726,120]
[342726477,1732086722925,-500.0,0.0005726,120]
[342726478,1732086722935,-500.0,0.0005726,120]
[342726479,1732086722946,-500.0,0.0005726,120]
[342726480,1732086722955,-182.19041853,0.0005726,120]
[342726481,1732086722966,-500.0,0.0005726,120]
[342726482,1732086722977,-500.0,0.0005726,120]
[342726483,1732086722989,-500.0,0.0005726,120]
[342726484,1732086722999,-3055.61,0.0005726,120]
[342726485,1732086723009,-301.26805002,0.0005726,120]
[342726486,1732086723018,-500.0,0.0005726,120]
[342726487,1732086723027,-3168.55,0.0005726,120]
[342726488,1732086723037,-324.91492691,0.0005726,120]
[342726489,1732086723047,-500.0,0.0005726,120]
[342726490,1732086723056,-1697.92,0.0005726,120]
[342726491,1732086723066,-500.0,0.0005726,120]
[342726492,1732086723076,-500.0,0.0005726,120]
[342726493,1732086723085,-500.0,0.0005726,120]
[342726494,1732086723095,-500.0,0.0005726,120]
[342726495,1732086723105,-500.0,0.0005726,120]
[342726496,1732086723115,-638.45327629,0.0005726,120]
[342726497,1732086723125,-500.0,0.0005726,120]
[342726498,1732086723135,-500.0,0.0005726,120]
[342726499,1732086723145,-500.0,0.0005726,120]
[342726500,1732086723155,-500.0,0.0005726,120]
[342726501,1732086723165,-301.86549348,0.0005726,120]
[342726502,1732086723175,-500.0,0.0005726,120]
[342726503,1732086723185,-500.0,0.0005726,120]
[342726504,1732086723195,-500.0,0.0005726,120]
[342726505,1732086723204,-500.0,0.0005726,120]
[342726506,1732086723214,-500.0,0.0005726,120]
[342726507,1732086723224,-500.0,0.0005726,120]
[342726508,1732086723233,-659.42,0.0005726,120]
[342726509,1732086723242,-500.0,0.0005726,120]
[342726510,1732086723252,-2717.09,0.0005726,120]
[342726511,1732086723262,-500.0,0.0005726,120]
[342726512,1732086723273,-199.23774911,0.0005726,120]
[342726513,1732086723283,-500.0,0.0005726,120]
[342726514,1732086723292,-500.0,0.0005726,120]
[342726515,1732086723302,-500.0,0.0005726,120]
[342726516,1732086723311,-500.0,0.0005726,120]
[342726517,1732086723325,-373.20471525,0.0005726,120]
[342726518,1732086723335,-500.0,0.0005726,120]
[342726519,1732086723345,-798.52,0.0005726,120]
[342726520,1732086723354,-982.26,0.0005726,120]
[342726521,1732086723365,-500.0,0.0005726,120]
[342726522,1732086723375,-500.0,0.0005726,120]
[342726523,1732086723385,-707.74,0.0005726,120]
[342726524,1732086723396,-4470.82,0.0005726,120]
[342726525,1732086723405,-500.0,0.0005726,120]
[342726526,1732086723415,-650.76,0.0005726,21]
[342726527,1732086723424,-2268.24,0.0005726,120]
[342726528,1732086723434,-3957.68,0.0005726,60]
[342726529,1732086723444,-717.59,0.0005726,120]
[342726530,1732086723454,-3094.65,0.0005726,120]
[342726531,1732086723464,-2000.0,0.0005726,120]
[342726532,1732086723473,-500.0,0.0005726,120]
[342726533,1732086723483,-385.58470311,0.0005726,120]
[342726534,1732086723493,-998.06,0.0005726,120]
[342726535,1732086723503,-237.00823795,0.0005726,120]
[342726536,1732086723512,-1516.88,0.0005726,120]
[342726537,1732086723668,-617.47,0.0005726,120]
[342726538,1732086723679,-2604.2,0.0005726,120]
[342726539,1732086723688,-500.17,0.0005726,120]
[342726540,1732086723699,-500.0,0.0005726,120]
[342726541,1732086723708,-635.36,0.0005726,120]
[342726542,1732086723717,-500.0,0.0005726,120]
[342726543,1732086723727,-500.0,0.0005726,120]
[342726544,1732086723738,-500.0,0.0005726,120]
[342726545,1732086723748,-700.75,0.0005726,120]
[342726546,1732086723757,-500.0,0.0005726,120]
[342726547,1732086723767,-505.72,0.0005726,120]
[342726548,1732086723777,-500.0,0.0005726,120]
[342726549,1732086723787,-500.0,0.0005726,120]
[342726550,1732086723796,-517.3212597,0.0005726,120]
[342726551,1732086723806,-1000.0,0.0005726,120]
[342726552,1732086723815,-500.0,0.0005726,30]
[342726553,1732086723825,-238.37162382,0.0005726,120]
[342726554,1732086723836,-3206.56,0.0005726,120]
[342726555,1732086723845,-500.0,0.0005726,120]
[342726556,1732086723855,-946.93,0.0005726,120]
[342726557,1732086723867,-508.31,0.0005726,120]
[342726558,1732086723877,-608.27440312,0.0005726,120]
[342726559,1732086723887,-500.0,0.0005726,120]
[342726560,1732086723897,-505.75755301,0.0005726,120]
[342726561,1732086723908,-500.0,0.0005726,120]
[342726562,1732086723917,-500.0,0.0005726,120]
[342726563,1732086723927,-584.84132497,0.0005726,120]
[342726564,1732086723937,-2581.57,0.0005726,120]
[342726565,1732086723947,-1301.4,0.0005726,120]
[342726566,1732086723957,-5192.93,0.0005726,120]
[342726567,1732086723967,-500.0,0.0005726,120]
[342726568,1732086723976,-852.9,0.0005726,120]
[342726569,1732086723986,-500.0,0.0005726,120]
[342726570,1732086723996,-2774.17,0.0005726,120]
[342726571,1732086724006,-3061.68,0.0005726,120]
[342726572,1732086724016,-500.0,0.0005726,120]
[342726573,1732086724025,-500.0,0.0005726,120]
[342726574,1732086724035,-2031.6,0.0005726,120]
[342726575,1732086724044,-532.35326732,0.0005726,120]
[342726576,1732086724054,-500.0,0.0005726,120]
[342726577,1732086724064,-500.0,0.0005726,120]
[342726578,1732086724073,-2936.91,0.0005726,120]
[342726579,1732086724083,-500.0,0.0005726,120]
[342726580,1732086724093,-720.2,0.0005726,120]
[342726581,1732086724102,-500.0,0.0005726,120]
[342726582,1732086724113,-500.0,0.0005726,120]
[342726583,1732086724122,-2810.53,0.0005726,120]
[342726584,1732086724132,-500.0,0.0005726,120]
[342726585,1732086724141,-1822.63,0.0005726,120]
[342726586,1732086724150,-1273.99,0.0005726,120]
[342726587,1732086724160,-850.0,0.0005726,120]
[342726588,1732086724169,-500.0,0.0005726,120]
[342726589,1732086724179,-711.44,0.0005726,120]
[342726590,1732086724189,-729.82,0.0005726,120]
[342726591,1732086724198,-2955.44,0.0005726,120]
[342726592,1732086724208,-2080.78,0.0005726,120]
[342726593,1732086724217,-574.19258079,0.0005726,120]
[342726594,1732086724226,-180.42693106,0.0005726,120]
[342726595,1732086724236,-1918.47,0.0005726,120]
[342726596,1732086724245,-500.0,0.0005726,120]
[342726597,1732086724254,-606.63,0.0005726,120]
[342726598,1732086724264,-500.0,0.0005726,120]
[342726599,1732086724273,-1137.2,0.0005726,3]
[342726600,1732086724282,-2847.53,0.0005726,120]
[342726601,1732086724291,-500.0,0.0005726,120]
[342726602,1732086724300,-3545.19,0.0005726,120]
[342726603,1732086724310,-500.0,0.0005726,120]
[342726604,1732086724323,-56250.0,0.0005742,120]
[342726605,1732086724332,-150.0,0.0005746,40]
[342726606,1732086724342,-150.0,0.000575,113]
[342726607,1732086724351,-1000.0,0.00057534,120]
[342726608,1732086724363,-500.0,0.00057534,120]
[342726609,1732086724372,-2543.97988093,0.00057534,120]
[342726610,1732086724380,-500.0,0.00057534,120]
[342726611,1732086724390,-500.0,0.00057534,120]
[342726612,1732086724400,-304.98516808,0.00057534,120]
[342726613,1732086724409,-500.0,0.00057534,14]
[342726614,1732086724419,-500.0,0.00057534,7]
[342726615,1732086724428,-232.22864875,0.00057534,120]
[342726616,1732086724437,-966.97,0.00057534,120]
[342726617,1732086724446,-1703.66,0.00057534,120]
[342726618,1732086724457,-500.0,0.00057534,120]
[342726619,1732086724466,-500.0,0.00057534,120]
[342726620,1732086724476,-500.0,0.00057534,120]
[342726621,1732086724486,-2720.0,0.00057534,120]
[342726622,1732086724496,-500.0,0.00057534,120]
[342726623,1732086724505,-500.0,0.00057534,120]
[342726624,1732086724515,-500.0,0.00057534,120]
[342726625,1732086724525,-500.0,0.00057534,120]
[342726626,1732086724535,-500.0,0.00057534,120]
[342726627,1732086724545,-829.63,0.00057534,120]
[342726628,1732086724555,-500.0,0.00057534,120]
[342726629,1732086724564,-500.0,0.00057534,120]
[342726630,1732086724574,-620.27,0.00057534,120]
[342726631,1732086724583,-2345.32,0.00057534,120]
[342726632,1732086724594,-500.0,0.00057534,120]
[342726633,1732086724604,-500.0,0.00057534,120]
[342726634,1732086724615,-1166.49,0.00057534,120]
[342726635,1732086724625,-500.0,0.00057534,120]
[342726636,1732086724635,-734.6,0.00057534,120]
[342726637,1732086724645,-500.0,0.00057534,120]
[342726638,1732086724655,-366.09477877,0.00057534,120]
[342726639,1732086724664,-500.0,0.00057534,120]
[342726640,1732086724674,-638.83678474,0.00057534,120]
[342726641,1732086724684,-2844.38,0.00057534,120]
[342726642,1732086724693,-500.0,0.00057534,120]
[342726643,1732086724703,-500.0,0.00057534,120]
[342726644,1732086724713,-184.71898893,0.00057534,120]
[342726645,1732086724723,-1035.53,0.00057534,120]
[342726646,1732086724733,-1318.23,0.00057534,120]
[342726647,1732086724742,-500.0,0.00057534,120]
[342726648,1732086724755,-500.0,0.00057534,120]
[342726649,1732086724767,-400.36,0.00057534,7]
[342726650,1732086724778,-503.21,0.00057534,120]
[342726651,1732086724788,-500.0,0.00057534,120]
[342726652,1732086724799,-150.0,0.00057534,120]
[342726653,1732086724808,-500.0,0.00057534,120]
[342726654,1732086724819,-261.30676211,0.00057534,120]
[342726655,1732086724829,-500.0,0.00057534,120]
[342726656,1732086724839,-500.0,0.00057534,120]
[342726657,1732086724849,-2000.0,0.00057534,120]
[342726658,1732086724859,-2333.06,0.00057534,120]
[342726659,1732086724873,-500.0,0.00057534,120]
[342726660,1732086724883,-500.0,0.00057534,120]
[342726661,1732086724894,-500.0,0.00057534,120]
[342726662,1732086724904,-242.85821877,0.00057534,120]
[342726663,1732086724914,-500.0,0.00057534,120]
[342726664,1732086724924,-500.0,0.00057534,120]
[342726665,1732086724934,-500.0,0.00057534,120]
[342726666,1732086724945,-500.0,0.00057534,120]
[342726667,1732086724955,-500.0,0.00057534,120]
[342726668,1732086724965,-3055.61,0.00057534,120]
[342726669,1732086724974,-500.0,0.00057534,120]
[342726670,1732086724984,-3168.55,0.00057534,120]
[342726671,1732086724994,-629.9618282,0.00057534,120]
[342726672,1732086725003,-1697.92,0.00057534,120]
[342726673,1732086725014,-500.0,0.00057534,120]
[342726674,1732086725025,-500.0,0.00057534,120]
[342726675,1732086725036,-500.0,0.00057534,120]
[342726676,1732086725051,-500.0,0.00057534,120]
[342726677,1732086725061,-500.0,0.00057534,120]
[342726678,1732086725072,-500.0,0.00057534,120]
[342726679,1732086725082,-500.0,0.00057534,120]
[342726680,1732086725091,-399.96151644,0.00057534,120]
[342726681,1732086725101,-500.0,0.00057534,120]
[342726682,1732086725112,-539.90060818,0.00057534,120]
[342726683,1732086725122,-500.0,0.00057534,120]
[342726684,1732086725133,-500.0,0.00057534,120]
[342726685,1732086725142,-500.0,0.00057534,120]
[342726686,1732086725152,-500.0,0.00057534,120]
[342726687,1732086725162,-241.30167991,0.00057534,120]
[342726688,1732086725171,-659.42,0.00057534,120]
[342726689,1732086725181,-500.0,0.00057534,120]
[342726690,1732086725191,-2717.09,0.00057534,120]
[342726691,1732086725201,-500.0,0.00057534,120]
[342726692,1732086725211,-500.0,0.00057534,120]
[342726693,1732086725221,-386.6742392,0.00057534,120]
[342726694,1732086725231,-500.0,0.00057534,120]
[342726695,1732086725240,-500.0,0.00057534,120]
[342726696,1732086725250,-500.0,0.00057534,120]
[342726697,1732086725259,-798.52,0.00057534,120]
[342726698,1732086725269,-500.0,0.00057534,120]
[342726699,1732086725279,-982.26,0.00057534,120]
[342726700,1732086725289,-388.21366986,0.00057534,120]
[342726701,1732086725299,-707.74,0.00057534,120]
[342726702,1732086725309,-4470.82,0.00057534,120]
[342726703,1732086725323,-500.0,0.00057534,120]
[342726704,1732086725333,-650.76,0.00057534,21]
[342726705,1732086725343,-2268.24,0.00057534,120]
[342726706,1732086725354,-3957.68,0.00057534,60]
[342726707,1732086725368,-717.59,0.00057534,120]
[342726708,1732086725377,-3094.65,0.00057534,120]
[342726709,1732086725387,-2000.0,0.00057534,120]
[342726710,1732086725400,-500.0,0.00057534,120]
[342726711,1732086725409,-998.06,0.00057534,120]
[342726712,1732086725418,-1516.88,0.00057534,120]
[342726713,1732086725427,-617.47,0.00057534,120]
[342726714,1732086725437,-2604.2,0.00057534,120]
[342726715,1732086725446,-500.17,0.00057534,120]
[342726716,1732086725456,-500.0,0.00057534,120]
[342726717,1732086725464,-635.36,0.00057534,120]
[342726718,1732086725473,-500.0,0.00057534,120]
[342726719,1732086725483,-500.0,0.00057534,120]
[342726720,1732086725492,-500.0,0.00057534,120]
[342726721,1732086725502,-700.75,0.00057534,120]
[342726722,1732086725512,-500.0,0.00057534,120]
[342726723,1732086725524,-505.72,0.00057534,120]
[342726724,1732086725535,-500.0,0.00057534,120]
[342726725,1732086725544,-500.0,0.00057534,120]
[342726726,1732086725555,-1000.0,0.00057534,120]
[342726727,1732086725564,-500.0,0.00057534,30]
[342726728,1732086725574,-3206.56,0.00057534,120]
[342726729,1732086725583,-500.0,0.00057534,120]
[342726730,1732086725591,-946.93,0.00057534,120]
[342726731,1732086725601,-508.31,0.00057534,120]
[342726732,1732086725614,-500.0,0.00057534,120]
[342726733,1732086725623,-500.0,0.00057534,120]
[342726734,1732086725632,-500.0,0.00057534,120]
[342726735,1732086725641,-2581.57,0.00057534,120]
[342726736,1732086725652,-1301.4,0.00057534,120]
[342726737,1732086725662,-5192.93,0.00057534,120]
[342726738,1732086725671,-500.0,0.00057534,120]
[342726739,1732086725680,-852.9,0.00057534,120]
[342726740,1732086725690,-500.0,0.00057534,120]
[342726741,1732086725699,-2774.17,0.00057534,120]
[342726742,1732086725709,-3061.68,0.00057534,120]
[342726743,1732086725718,-500.0,0.00057534,120]
[342726744,1732086725728,-500.0,0.00057534,120]
[342726745,1732086725738,-2031.6,0.00057534,120]
[342726746,1732086725747,-500.0,0.00057534,120]
[342726747,1732086725758,-500.0,0.00057534,120]
[342726748,1732086725767,-2936.91,0.00057534,120]
[342726749,1732086725776,-500.0,0.00057534,120]
[342726750,1732086725786,-720.2,0.00057534,120]
[342726751,1732086725795,-575.29703843,0.00057534,120]
[342726752,1732086725805,-500.0,0.00057534,120]
[342726753,1732086725814,-2810.53,0.00057534,120]
[342726754,1732086725823,-500.0,0.00057534,120]
[342726755,1732086725833,-1822.63,0.00057534,120]
[342726756,1732086725843,-1273.99,0.00057534,120]
[342726757,1732086725852,-850.0,0.00057534,120]
[342726758,1732086725862,-500.0,0.00057534,120]
[342726759,1732086725871,-711.44,0.00057534,120]
[342726760,1732086725881,-729.82,0.00057534,120]
[342726761,1732086725891,-2955.44,0.00057534,120]
[342726762,1732086725900,-2080.78,0.00057534,120]
[342726763,1732086725909,-1918.47,0.00057534,120]
[342726764,1732086725918,-500.0,0.00057534,120]
[342726765,1732086725927,-606.63,0.00057534,120]
[342726766,1732086725936,-500.0,0.00057534,120]
[342726767,1732086725946,-1137.2,0.00057534,3]
[342726768,1732086725955,-2847.53,0.00057534,120]
[342726769,1732086725964,-500.0,0.00057534,120]
[342726770,1732086725973,-3545.19,0.00057534,120]
[342726771,1732086725983,-500.0,0.00057534,120]
[342726772,1732086725992,-214.0,0.0005775,30]
[342726773,1732086726001,-204.0,0.0005775,30]
[342726774,1732086726010,-215.0,0.0005775,120]
[342726775,1732086726019,-6864.6,0.0005775,117]
[342726776,1732086726029,-201.0,0.0005775,120]
[342726777,1732086726038,-204.0,0.0005775,120]
[342726778,1732086726049,-385.0,0.00057764,30]
[342726779,1732086726059,-528.85601854,0.00057764,30]
[342726780,1732086726200,-500.0,0.000578,120]
[342726781,1732086726210,-1624.29819621,0.000578,120]
[342726782,1732086726219,-500.0,0.00057808,120]
[342726783,1732086726228,-414.80023067,0.00057808,120]
[342726784,1732086726238,-500.0,0.00057808,120]
[342726785,1732086726248,-500.0,0.00057808,14]
[342726786,1732086726258,-500.0,0.00057808,7]
[342726787,1732086726268,-966.97,0.00057808,120]
[342726788,1732086726278,-1703.66,0.00057808,120]
[342726789,1732086726289,-500.0,0.00057808,120]
[342726790,1732086726298,-500.0,0.00057808,120]
[342726791,1732086726309,-500.0,0.00057808,120]
[342726792,1732086726322,-2720.0,0.00057808,120]
[342726793,1732086726332,-632.50528894,0.00057808,120]
[342726794,1732086726342,-500.0,0.00057808,120]
[342726795,1732086726353,-500.0,0.00057808,120]
[342726796,1732086726365,-500.0,0.00057808,120]
[342726797,1732086726375,-397.09493466,0.00057808,120]
[342726798,1732086726384,-829.63,0.00057808,120]
[342726799,1732086726393,-164.31347168,0.00057808,120]
[342726800,1732086726402,-500.0,0.00057808,120]
[342726801,1732086726412,-620.27,0.00057808,120]
[342726802,1732086726422,-2345.32,0.00057808,120]
[342726803,1732086726431,-500.0,0.00057808,120]
[342726804,1732086726441,-500.0,0.00057808,120]
[342726805,1732086726450,-1166.49,0.00057808,120]
[342726806,1732086726459,-500.0,0.00057808,120]
[342726807,1732086726469,-734.6,0.00057808,120]
[342726808,1732086726478,-500.0,0.00057808,120]
[342726809,1732086726487,-500.0,0.00057808,120]
[342726810,1732086726497,-2844.38,0.00057808,120]
[342726811,1732086726507,-502.33182924,0.00057808,120]
[342726812,1732086726517,-500.0,0.00057808,120]
[342726813,1732086726526,-1035.53,0.00057808,120]
[342726814,1732086726536,-1318.23,0.00057808,120]
[342726815,1732086726545,-500.0,0.00057808,120]
[342726816,1732086726555,-186.67819932,0.00057808,120]
[342726817,1732086726565,-400.36,0.00057808,7]
[342726818,1732086726575,-503.21,0.00057808,120]
[342726819,1732086726585,-500.0,0.00057808,120]
[342726820,1732086726595,-150.0,0.00057808,120]
[342726821,1732086726604,-500.0,0.00057808,120]
[342726822,1732086726615,-500.0,0.00057808,120]
[342726823,1732086726624,-500.0,0.00057808,120]
[342726824,1732086726634,-2000.0,0.00057808,120]
[342726825,1732086726643,-2333.06,0.00057808,120]
[342726826,1732086726653,-500.0,0.00057808,120]
[342726827,1732086726663,-244.08997674,0.00057808,120]
[342726828,1732086726676,-500.0,0.00057808,120]
[342726829,1732086726686,-500.0,0.00057808,120]
[342726830,1732086726696,-500.0,0.00057808,120]
[342726831,1732086726707,-500.0,0.00057808,120]
[342726832,1732086726717,-311.78249853,0.00057808,120]
[342726833,1732086726726,-500.0,0.00057808,120]
[342726834,1732086726737,-3055.61,0.00057808,120]
[342726835,1732086726746,-500.0,0.00057808,120]
[342726836,1732086726755,-3168.55,0.00057808,120]
[342726837,1732086726765,-1697.92,0.00057808,120]
[342726838,1732086726774,-500.0,0.00057808,120]
[342726839,1732086726784,-500.0,0.00057808,120]
[342726840,1732086726794,-500.0,0.00057808,120]
[342726841,1732086726803,-215.7820896,0.00057808,120]
[342726842,1732086726812,-500.0,0.00057808,120]
[342726843,1732086726822,-500.0,0.00057808,120]
[342726844,1732086726832,-500.0,0.00057808,120]
[342726845,1732086726841,-500.0,0.00057808,120]
[342726846,1732086726851,-500.0,0.00057808,120]
[342726847,1732086726860,-500.0,0.00057808,120]
[342726848,1732086726871,-199.35711407,0.00057808,120]
[342726849,1732086726881,-500.0,0.00057808,120]
[342726850,1732086726890,-659.42,0.00057808,120]
[342726851,1732086726900,-500.0,0.00057808,120]
[342726852,1732086726910,-2717.09,0.00057808,120]
[342726853,1732086726919,-500.0,0.00057808,120]
[342726854,1732086726929,-500.0,0.00057808,120]
[342726855,1732086726940,-500.0,0.00057808,120]
[342726856,1732086726949,-500.0,0.00057808,120]
[342726857,1732086726959,-500.0,0.00057808,120]
[342726858,1732086726968,-798.52,0.00057808,120]
[342726859,1732086726977,-575.87020104,0.00057808,120]
[342726860,1732086726986,-982.26,0.00057808,120]
[342726861,1732086726996,-707.74,0.00057808,120]
[342726862,1732086727006,-4470.82,0.00057808,120]
[342726863,1732086727016,-500.0,0.00057808,120]
[342726864,1732086727026,-650.76,0.00057808,21]
[342726865,1732086727037,-2268.24,0.00057808,120]
[342726866,1732086727047,-3957.68,0.00057808,60]
[342726867,1732086727057,-717.59,0.00057808,120]
[342726868,1732086727067,-3094.65,0.00057808,120]
[342726869,1732086727077,-2000.0,0.00057808,120]
[342726870,1732086727088,-500.0,0.00057808,120]
[342726871,1732086727098,-998.06,0.00057808,120]
[342726872,1732086727108,-1516.88,0.00057808,120]
[342726873,1732086727118,-617.47,0.00057808,120]
[342726874,1732086727128,-2604.2,0.00057808,120]
[342726875,1732086727138,-500.17,0.00057808,120]
[342726876,1732086727149,-500.0,0.00057808,120]
[342726877,1732086727159,-635.36,0.00057808,120]
[342726878,1732086727168,-500.0,0.00057808,120]
[342726879,1732086727178,-500.0,0.00057808,120]
[342726880,1732086727187,-500.0,0.00057808,120]
[342726881,1732086727197,-700.75,0.00057808,120]
[342726882,1732086727207,-500.0,0.00057808,120]
[342726883,1732086727216,-505.72,0.00057808,120]
[342726884,1732086727226,-500.0,0.00057808,120]
[342726885,1732086727236,-500.0,0.00057808,120]
[342726886,1732086727248,-1000.0,0.00057808,120]
[342726887,1732086727258,-500.0,0.00057808,30]
[342726888,1732086727267,-3206.56,0.00057808,120]
[342726889,1732086727276,-261.97781695,0.00057808,120]
[342726890,1732086727286,-946.93,0.00057808,120]
[342726891,1732086727296,-508.31,0.00057808,120]
[342726892,1732086727305,-500.0,0.00057808,120]
[342726893,1732086727314,-500.0,0.00057808,120]
[342726894,1732086727338,-500.0,0.00057808,120]
[342726895,1732086727353,-2581.57,0.00057808,120]
[342726896,1732086727370,-1301.4,0.00057808,120]
[342726897,1732086727387,-5192.93,0.00057808,120]
[342726898,1732086727407,-500.0,0.00057808,120]
[342726899,1732086727421,-852.9,0.00057808,120]
[342726900,1732086727437,-2774.17,0.00057808,120]
[342726901,1732086727452,-196.40642771,0.00057808,120]
[342726902,1732086727471,-3061.68,0.00057808,120]
[342726903,1732086727487,-500.0,0.00057808,120]
[342726904,1732086727506,-500.0,0.00057808,120]
[342726905,1732086727523,-2031.6,0.00057808,120]
[342726906,1732086727540,-500.0,0.00057808,120]
[342726907,1732086727559,-500.0,0.00057808,120]
[342726908,1732086727570,-2936.91,0.00057808,120]
[342726909,1732086727586,-500.0,0.00057808,120]
[342726910,1732086727600,-720.2,0.00057808,120]
[342726911,1732086727613,-500.0,0.00057808,120]
[342726912,1732086727629,-2810.53,0.00057808,120]
[342726913,1732086727641,-500.0,0.00057808,120]
[342726914,1732086727657,-1822.63,0.00057808,120]
[342726915,1732086727671,-1273.99,0.00057808,120]
[342726916,1732086727687,-850.0,0.00057808,120]
[342726917,1732086727706,-282.18312526,0.00057808,120]
[342726918,1732086727720,-711.44,0.00057808,120]
[342726919,1732086727735,-729.82,0.00057808,120]
[342726920,1732086727750,-2955.44,0.00057808,120]
[342726921,1732086727765,-2080.78,0.00057808,120]
[342726922,1732086727779,-1918.47,0.00057808,120]
[342726923,1732086727793,-500.0,0.00057808,120]
[342726924,1732086727808,-606.63,0.00057808,120]
[342726925,1732086727823,-500.0,0.00057808,120]
[342726926,1732086727837,-1137.2,0.00057808,3]
[342726927,1732086727851,-2847.53,0.00057808,120]
[342726928,1732086727866,-500.0,0.00057808,120]
[342726929,1732086727888,-3545.19,0.00057808,120]
[342726930,1732086727902,-500.0,0.00057808,120]
[342726931,1732086727916,-50000.0,0.0005785,120]
[342726932,1732086727929,-199090.9154892,0.0005788,30]
[342726933,1732086727942,-21420.0,0.000579,120]
[342726934,1732086727956,-156807.83075553,0.00058,120]
[342726935,1732086727970,-209.57013241,0.00058,120]
[342726936,1732086727984,-500.0,0.00058,120]
[342726937,1732086727997,-18078.33737344,0.00058,120]
[342726938,1732086728011,-2878.4905813,0.00058,120]
[342726939,1732086728024,-15653.39959339,0.00058,120]
[342726940,1732086728038,-561.19225476,0.00058,120]
[342726941,1732086728052,-850.0,0.00058,120]
[342726942,1732086728066,-1000.0,0.00058,120]
[342726943,1732086728080,-156.96,0.00058,120]
[342726944,1732086728093,-151.0,0.00058,120]
[342726945,1732086728107,-150.0,0.00058,114]
[342726946,1732086728122,-355.5,0.00058002,120]
[342726947,1732086728136,-500.0,0.00058082,120]
[342726948,1732086728150,-258.24959311,0.00058082,120]
[342726949,1732086728164,-500.0,0.00058082,14]
[342726950,1732086728178,-500.0,0.00058082,7]
[342726951,1732086728191,-966.97,0.00058082,120]